Cogmind - Beta 16 @@@ ROGUE MODE // 2025.10.29 @ 20:05:35 Player: Volvedor Result: Destroyed by Y-45 Defender with Beam Rifle Performance ------------- Evolutions (1) 500 Regions Visited (3) 600 Robots Destroyed (1) 5 Value Destroyed (7) 7 Prototype IDs (1) 20 Alien Tech Used (0) 0 Bonus (0) 0 TOTAL SCORE: 1132 Bonus ------- None Cogmind --------- Core Integrity 0/400 Matter 181/300 Energy 100/100 System Corruption 0% Temperature Cool (27) Movement Hovering (50) Location -9/Storage Parts ------- > --- POWER (1) -------- (None) > --- PROPULSION (3) --- Cooled Aerolev Unit > --- UTILITY (3) ------ Small Storage Unit Utility Shielding > --- WEAPON (2) ------- (None) > --- INVENTORY (8) ---- Light Ion Engine Light Treads Aluminum Leg Aluminum Leg Seismic Detector Small Laser Light Assault Rifle Peak State ------------ > --- POWER ------------ Ion Engine > --- PROPULSION ------- Compact Wheel Compact Wheel > --- UTILITY ---------- Small Storage Unit Seismic Detector Utility Shielding > --- WEAPON ----------- EM Pulse Gun Medium Laser > --- INVENTORY -------- Light Ion Engine Light Treads Aluminum Leg Aluminum Leg Seismic Detector Small Laser Light Assault Rifle [Rating: 8] Favorites ----------- Power Ion Engine Engine Ion Engine Propulsion Compact Wheel Leg Aluminum Leg Wheel Compact Wheel Hover Unit Cooled Aerolev Unit Utility Small Storage Unit Device Seismic Detector Storage Small Storage Unit Protection Utility Shielding Weapon Medium Laser Energy Gun Medium Laser Build | -11 -10 -9 -9 ------- Run | Yrd Mat Mat Sto Slots Evolved 2 | . . 2 . Power . | . . . . Propulsion 1 | . . 1 . Utility 1 | . . 1 . Weapon . | . . . . Parts Attached 13 | 9 3 . 1 Power 1 | 1 . . . Engine 1 | 1 . . . Core . | . . . . Reactor . | . . . . Propulsion 5 | 4 . . 1 Treads . | . . . . Leg 2 | 2 . . . Wheel 2 | 2 . . . Hover 1 | . . . 1 Flight . | . . . . Utility 4 | 2 2 . . Device 2 | 1 1 . . Storage 1 | 1 . . . Processor . | . . . . Hackware . | . . . . Protection 1 | . 1 . . Artifact . | . . . . Weapon 3 | 2 1 . . Energy Gun 3 | 2 1 . . Energy Cannon . | . . . . Ballistic Gun . | . . . . Ballistic Cannon . | . . . . Launcher . | . . . . Special Weapon . | . . . . Impact Weapon . | . . . . Slashing Weapon . | . . . . Piercing Weapon . | . . . . Special Melee Weapon . | . . . . Unidentified Prototypes 1 | . . . 1 Parts Lost 6 | . . . 6 Power 1 | . . . 1 Propulsion 2 | . . . 2 Utility 1 | . . . 1 Weapon 2 | . . . 2 Highest Loss Streak 6 | . . . 6 To Critical Strikes . | . . . . Average Backups 7 | 3 7 7 7 Power . | . 1 1 1 Propulsion 3 | 2 3 3 3 Utility 1 | . 1 1 1 Weapon 1 | . 1 2 2 Tool/Special . | . . . . Unused Backups 5 | . 2 . 3 Power 1 | . . . 1 Propulsion 2 | . 1 . 1 Utility . | . . . . Weapon 2 | . 1 . 1 Tool/Special . | . . . . Average Slot Usage (%) 93 | . 100 88 77 Engine 12 | . 14 11 8 Wheel 25 | . 28 22 19 Device 11 | . 12 11 9 Storage 12 | . 14 11 11 Protection 5 | . 1 11 11 Energy Gun 24 | . 28 22 17 Peak Build Rating 8 | 7 7 8 8 Average Rating 6 | 5 7 8 7 On Entrance 5 | . 7 7 8 Avg Prop Armor Cover (%) . | . . . . Naked Turns . | . . . . Heaviest Build 16 | 14 15 16 16 Greatest Support 32 | 32 32 32 32 Greatest Overweight (x) 1 | . . . 1 Average Overweight (x) . | . . . . Largest Inventory Capacity 8 | 8 8 8 8 Average Capacity 7 | 6 8 8 8 Most Carried 8 | 6 8 7 7 Average Carried 7 | 3 7 7 7 Final Capacity 8 | 8 8 8 8 Final Carried 8 | 6 8 7 7 Class Distribution -------------------- 100% | Mutant Dominant Class ---------------- Mutant | -10/Materials Mutant | -9/Materials Mutant | -9/Storage Resources | -11 -10 -9 -9 ----------- Run | Yrd Mat Mat Sto Matter Collected 193 | 193 . . . Remotely . | . . . . Salvage Created 26 | 26 . . . Parts 4 | 4 . . . Haulers Intercepted . | . . . . Recyclers Shooed . | . . . . Parts Field Recycled . | . . . . Retrieved Matter . | . . . . Parts Self-Destructed . | . . . . Prevented . | . . . . Parts Restored . | . . . . Kills | -11 -10 -9 -9 ------- Run | Yrd Mat Mat Sto Combat Hostiles Destroyed . | . . . . Classes Destroyed 1 | 1 . . . Tunneler 1 | 1 . . . Best Kill Streak 1 | 1 . . . Combat Bots Only . | . . . . Max Kills in Single Turn 1 | 1 . . . Gunslinging . | . . . . Exploded . | . . . . Melee . | . . . . Uniques/NPCs Destroyed . | . . . . Combat | -11 -10 -9 -9 -------- Run | Yrd Mat Mat Sto Hostile Shots Fired 102 | . . 6 96 Missed 24 | . . 2 22 Hits 78 | . . 4 74 Projectile 78 | . . 4 74 Critical Strikes 2 | . . . 2 Actively Blocked 1 | . . . 1 Damage Taken 783 | . . 58 725 Core 408 | . . 28 380 Absorbed by Shields . | . . . . Redirected to Shielding 22 | . . . 22 Core Remaining (%) 100 | 100 100 . . Volleys Fired 5 | 5 . . . Largest 2 | 2 . . . Hottest 90 | 90 . . . Shots Fired 10 | 10 . . . Gun 10 | 10 . . . Cannon . | . . . . Launcher . | . . . . Special . | . . . . Kinetic . | . . . . Thermal 10 | 10 . . . Explosive . | . . . . Electromagnetic . | . . . . Robot Hit Streak 3 | 3 . . . Robot Miss Streak 2 | 2 . . . Penetration Max . | . . . . Secondary Targets . | . . . . Shots Hit Robots 6 | 6 . . . Core Hits 2 | 2 . . . Critical Kills . | . . . . Critical Parts Destroyed . | . . . . Critical Strikes . | . . . . Melee Attacks . | . . . . Impact . | . . . . Slashing . | . . . . Piercing . | . . . . Sneak Attacks . | . . . . Combat Hostiles . | . . . . Follow-up Attacks . | . . . . Damage Inflicted 110 | 67 . . 43 Guns 67 | 67 . . . Cannons . | . . . . Explosions . | . . . . Melee . | . . . . Ramming 43 | . . . 43 Kinetic . | . . . . Thermal 67 | 67 . . . Explosive . | . . . . Electromagnetic . | . . . . Impact . | . . . . Slashing . | . . . . Piercing . | . . . . Highest Corruption . | . . . . Average Corruption . | . . . . Corruption Purged . | . . . . Corruption Blocked . | . . . . Overload Shots . | . . . . Overflow Damage . | . . . . Projectiles . | . . . . Explosions . | . . . . Melee . | . . . . Knockbacks . | . . . . Impact . | . . . . Kinetic . | . . . . Secondary . | . . . . Self-Inflicted Damage 20 | . . . 20 Shots . | . . . . Rammed 7 | . . . 7 Targets Rammed 7 | . . . 7 Kicked . | . . . . Crushed . | . . . . Highest Temperature 150 | 150 . . . Average Temperature 76 | 76 . . . Received Heat Transfer 147 | . . 18 129 Siege Activations . | . . . . Martial Activations . | . . . . Shielding Activations . | . . . . Robots Disrupted . | . . . . Combat Hostiles . | . . . . Robots Corrupted . | . . . . Combat Hostiles . | . . . . Parts Fried . | . . . . Impact Corruptions . | . . . . Robots Melted . | . . . . Combat Hostiles . | . . . . Parts Melted . | . . . . Heat Transferred 174 | 174 . . . Parts Sabotaged . | . . . . Parts Stolen . | . . . . Parts Stripped . | . . . . Power Chain Reactions . | . . . . Alert | -11 -10 -9 -9 ------- Run | Yrd Mat Mat Sto Maximum Alert Level . | . . . . Low Security (%) 100 | 100 100 100 100 Level 1 . | . . . . Level 2 . | . . . . Level 3 . | . . . . Level 4 . | . . . . Level 5 . | . . . . High Security . | . . . . Max Security . | . . . . Peak Influence 55 | 5 28 . 55 Initial . | . . . . Average 4 | . 2 . 12 Influence Increases 160 | 5 43 . 112 Destroy 0b10 Robot/NC 5 | 5 . . . Successful Hack 35 | . 28 . 7 Lose Combat Pursuer 120 | . 15 . 105 Influence Decreases 143 | 5 43 . 95 Time Decay 108 | 5 43 . 60 Lost Part 35 | . . . 35 Squads Dispatched 3 | . 2 . 1 Investigation 2 | . 1 . 1 Extermination . | . . . . Reinforcement 1 | . 1 . . Assault . | . . . . Garrison . | . . . . Intercept . | . . . . Searches Triggered . | . . . . Construction Impeded . | . . . . Haulers Reinforced . | . . . . Active Scanning Responses . | . . . . Cargo Convoy Interrupts . | . . . . Stealth | -11 -10 -9 -9 --------- Run | Yrd Mat Mat Sto Distress Signals 1 | . 1 . . Communications Jammed . | . . . . Distress Signals . | . . . . Times Spotted 26 | . 3 4 19 Peak Tracking Total 11 | . 2 4 11 Tactical Retreats 4 | . 1 . 3 Traps | -11 -10 -9 -9 ------- Run | Yrd Mat Mat Sto Traps Triggered 1 | . 1 . . Indirectly . | . . . . Trap Hack Attempts . | . . . . Triggered . | . . . . Disarmed . | . . . . Reprogrammed . | . . . . Reused . | . . . . Traps Extracted . | . . . . Installed . | . . . . Triggered . | . . . . Machines | -11 -10 -9 -9 ---------- Run | Yrd Mat Mat Sto Machines Disabled . | . . . . Max in Single Turn . | . . . . Machines Repaired . | . . . . Machines Dismantled . | . . . . Machines Sabotaged . | . . . . Overloaded Fab Kills . | . . . . Hacking | -11 -10 -9 -9 --------- Run | Yrd Mat Mat Sto Machines Accessed 3 | . 1 . 2 Terminals 3 | . 1 . 2 Fabricators . | . . . . Repair Stations . | . . . . Recycling Units . | . . . . Scanalyzers . | . . . . Garrison Access . | . . . . Total Hacks 9 | . 4 . 5 Successful 3 | . 2 . 1 Failed 6 | . 2 . 4 Catastrophic 2 | . 1 . 1 Database Lockouts . | . . . . Manual . | . . . . Terminals 9 | . 4 . 5 Fabricators . | . . . . Repair Stations . | . . . . Recycling Units . | . . . . Scanalyzers . | . . . . Garrison Access . | . . . . Terminal Hacks 3 | . 2 . 1 Open Door 1 | . . . 1 Hauler Manifests 1 | . 1 . . Zone Layout 1 | . 1 . . Fabricator Hacks . | . . . . Repair Station Hacks . | . . . . Recycling Unit Hacks . | . . . . Scanalyzer . | . . . . Garrison Access Hacks . | . . . . Unauthorized Hacks . | . . . . Terminals . | . . . . Fabricators . | . . . . Repair Stations . | . . . . Recycling Units . | . . . . Scanalyzers . | . . . . Garrison Access . | . . . . Data Cores Recovered . | . . . . Used . | . . . . Hacking Detections 3 | . 1 . 2 Full Trace Events 2 | . . . 2 Feedback Events . | . . . . Feedback Blocked . | . . . . Robot Schematics Acquired . | . . . . Robots Built . | . . . . Authchips . | . . . . Time . | . . . . Total Robot Build Rating . | . . . . Part Schematics Acquired . | . . . . Parts Built . | . . . . Authchips . | . . . . Time . | . . . . Total Part Build Rating . | . . . . Part Studies Acquired . | . . . . Parts Repaired . | . . . . Time . | . . . . Parts Recycled . | . . . . Recycled Matter . | . . . . Retrieved Matter . | . . . . Retrieved Components . | . . . . Parts Scanalyzed . | . . . . Part Schematics Acquired . | . . . . Parts Damaged . | . . . . Bothacking | -11 -10 -9 -9 ------------ Run | Yrd Mat Mat Sto Used RIF Installer . | . . . . Robots Hacked . | . . . . Non-combat . | . . . . Combat . | . . . . Robot Hacks Applied . | . . . . Relay Couplers Released . | . . . . Fabnet Peak Effective % . | . . . . Robots Rewired . | . . . . Allies Hacked . | . . . . Hacks Repelled . | . . . . Allies | -11 -10 -9 -9 -------- Run | Yrd Mat Mat Sto Total Allies . | . . . . Largest Group . | . . . . Highest-Rated Group . | . . . . Highest-Rated Ally . | . . . . Total Orders . | . . . . Ally Attacks . | . . . . Total Damage . | . . . . Kills . | . . . . Allies Corrupted . | . . . . Allies Melted . | . . . . Intel | -11 -10 -9 -9 ------- Run | Yrd Mat Mat Sto Active Infowar (turns) 682 | 14 432 81 155 Seismic 682 | 14 432 81 155 Robot Analysis Total . | . . . . Derelict Logs Recovered . | . . . . Drone Launches . | . . . . Drone Recoveries . | . . . . Exploration | -11 -10 -9 -9 ------------- Run | Yrd Mat Mat Sto Turns Passed 844 | 94 489 81 180 Spaces Moved 594 | 56 294 81 163 Core 4 | 2 . . 2 Treads . | . . . . Legs 7 | 7 . . . Wheels 579 | 47 294 81 157 Hover 4 | . . . 4 Flight . | . . . . Fastest Speed 50 | 50 100 100 50 Average Speed 99 | 100 100 100 98 Slowest Speed 120 | 120 100 100 100 Overloaded Moves . | . . . . Propulsion Burnouts . | . . . . Robots Hopped . | . . . . Potential Cave-ins . | . . . . Cave-ins Triggered . | . . . . Exploration Rate (%) 24 | 4 49 7 38 Regions Visited 3 Branch Regions 1 Pre-discovered Areas . | . . . . Known Exits Taken . | . . . . Unknown Exits Taken 3 | 1 1 1 . Scrap Searched . | . . . . Spaces Dug . | . . . . Terrain Destroyed . | . . . . Melee . | . . . . Projectile . | . . . . AOE . | . . . . Terrain Rammed . | . . . . Walls Destroyed . | . . . . Machines Disabled . | . . . . Actions | -11 -10 -9 -9 --------- Run | Yrd Mat Mat Sto Total 831 | 80 488 81 182 Wait 197 | . 186 . 11 Move 591 | 55 293 80 163 Hop . | . . . . Pick Up 10 | 7 3 . . Fast Attach 7 | 6 . . 1 Attach 4 | 3 . 1 . Detach 2 | 2 . . . Swap 6 | 2 4 . . Drop 2 | . 2 . . Fire 5 | 5 . . . Melee . | . . . . Ram 7 | . . . 7 Kick . | . . . . Crush . | . . . . Escape Stasis . | . . . . Rewire . | . . . . Trap . | . . . . Miscellaneous . | . . . . Route ------- -11/Scrapyard -10/Materials (discovered 2 exits: *Mat / [Min]) -9/Materials -9/Storage History --------- Turn | Location | Event 21 | -11/Scrapyard | Discovered new exit (range 15) 95 | -11/Scrapyard | Entered Materials 196 | -10/Materials | Discovered new exit (range 9) 315 | -10/Materials | Build established: Mutant 378 | -10/Materials | Discovered new exit (range 7) 584 | -10/Materials | Entered another Materials area 584 | -9/Materials | Evolved 2 slots: Propulsion x1, Utility x1 635 | -9/Materials | Discovered new exit (range 15) 665 | -9/Materials | Entered Storage 812 | -9/Storage | Core integrity fell below 50% 834 | -9/Storage | Core integrity fell below 20% 845 | -9/Storage | Destroyed by Y-45 Defender with Beam Rifle Last Messages --------------- 00822_ Com. Wheel destroyed. 00822_ Connecting with Door Terminal... >>Open(Door) Sealed Heavy Doors opened. 00822_ ALERT: Suspicious activity at Terminal S010. Dispatching Investigation squad. 00835_ Acquired Prototype Hover Unit. 00835_ Identified Cld. Aerolev Unit. The Cld. Aerolev Unit is "overloadable", activating it again increases its output for additional resource costs, and may damage the unit. See Burnout stat context help for more info. 00838_ Slammed into S-10 Pest. 00840_ Slammed into G-47 Trooper. 00842_ Slammed into S-10 Pest. 00842_ S-10 Pest destroyed. 00843_ Slammed into G-34 Mercenary. 00845_ Slammed into S-10 Pest. 00845_ Critical hit (Burn: +37). [Achievement: Deductive Reasoning] Map ----- +----------------------------------------------------+ | ??????# ?????????### # #??# ## | | ??????# ##########T# # " " #### ## | | ??????+ + "G" + ## | | ??????# # " #### ## | | ??????# """ !! """ # #??# ## | | ??????# """ !! """ ##+#####??# | | ??????# """ !! """ #??????#### # | | ???#+## #?????????# # | | ???# #?????????# # | | ???# ########/##### #?????????# # | | ???#####+#### #????????????# #?????????# # | | ????????????# #????????????# #?????????# | | ????????????# #????????????# #?????????# # | | ????????????# #????????????# #??##+##### # | | ????????????# #????????????# # | | ????????????# #????????????# # | | ????????????# #????????????# # | | ????????????# #????????????# | | ????????????# #??????????? + | | ????????????# #????????????# | | ????????????# #????????????### ########### | | ????????????# #??????????????#???????????? | | ????????????# #??????????????????????????? | | ???????###### ##?????????????????????????? | | ???????# sgsgg###### ##???????????????? | | ???????###T#%T @s Y #?????????? | | ?????????### ###### ##???????????????? | | ???????????#####?????????????????????????? | | ?????????????????????????????????????????? | | ?????????????????????????????????????????? | | ?????????????????????????????????????????? | | ?????????????????????????????????????????? | | | | | | | | | | | | | | | | | | | | | | | | | | | | | | | | | | | | | +----------------------------------------------------+ Best States ------------- Heat Dissipation 28 Energy Generation 10 Energy Capacity 250 Matter Stores 183 Matter Capacity 300 Sight Range 16 Terrain Scan Density 10 Utility Shielding 33 Evasion (%) 45 Item Schematics ----------------- None Robot Schematics ------------------ None Fabricated ------------ Nothing Repaired ---------- Nothing Studied --------- None Alien Tech Used ----------------- None Achievements -------------- Deductive Reasoning That Tickles Challenges ------------ None Game ------ Seed GuidedLayeredFlail Manual? 0 Play Time 00:17:25 Cumulative 36.0 hours Start 2025.10.29 @ 19:45:17 End 2025.10.29 @ 20:05:35 Sessions 1 Manual Loads 0 Difficulty Rogue Special Mode None Game No. 39 Rogue 39 Adventurer 0 Explorer 0 Win Type - Total 0 Types 0/0/0/0/0/0/0/0/0/0 Lore% 21 Gallery% 23 Achievement% 13 Wizard Run 0 Options --------- Layout 2 ASCII 0 Keyboard 0 Movement Mouse Keybinds 0 Fullscreen 1 Font 16/TerminusCaps Map View 55x47 Zoom Use 43% Tactical HUD 1 Map Filters NONE Filters NONE Steam 1 RUN: b4e35747-250a-4ebe-b18d-dff8d3e7af17